Workbook

Sheet EAEPE_CA_DEP
B2: JUNTA MUNICIPAL DE AGUA Y SANEAMIENTO DE MEOQUI
B3: Estado Analítico del Ejercicio del Presupuesto de Egresos
B4: Clasificación Administrativa
B5: Del 01 de enero al 31 de diciembre 2024
B6: Concepto | C6: Egresos | H6: Subejercicio
C7: Aprobado | D7: Ampliaciones/ (Reducciones) | E7: Modificado | F7: Devengado | G7: Pagado
C8: 1 | D8: 2 | E8: 3 = (1+2) | F8: 4 | G8: 5 | H8: 6 = ( 3 - 4)
B9: I. Gasto No Etiquetado
B10: OFICINA DEL C. DIRECTOR EJECUTIVO | C10: 7638231.53 | D10: -1160030.76 | E10: =C10+D10 -> 6478200.77 | F10: 6428879.59 | G10: 6201593.17 | H10: =E10-F10 -> 49321.18
B11: OFICINA DEL C. DIRECTORA FINANCIERA | C11: 19349901.71 | D11: -1645542.18 | E11: =C11+D11 -> 17704359.53 | F11: 17534622.32 | G11: 16907278.74 | H11: =E11-F11 -> 169737.21
B12: OFICINA DEL C. DIRECTOR DE OPERACIÓN | C12: 83532400.03 | D12: =28015999.38 -> 28015999.38 | E12: =C12+D12 -> 111548399.4 | F12: =75443255.22 -> 75443255.22 | G12: =66970192.47 -> 66970192.47 | H12: =E12-F12 -> 36105144.19
B13: OFICINA DEL C. DIRECTOR DE COMERCIALIZACIÓN | C13: 5144212.06 | D13: 1547197.84 | E13: =C13+D13 -> 6691409.9 | F13: 6271255.25 | G13: 5567981.56 | H13: =E13-F13 -> 420154.65
C14: 0 | D14: 0 | E14: =C14+D14 -> 0 | F14: 0 | G14: 0 | H14: =E14-F14 -> 0
C15: 0 | D15: 0 | E15: =C15+D15 -> 0 | F15: 0 | G15: 0 | H15: =E15-F15 -> 0
C16: 0 | D16: 0 | E16: 0 | F16: 0 | G16: 0 | H16: 0
B17: II. Gasto Etiquetado | C17: 0 | D17: 0 | E17: 0 | F17: 0 | G17: 0 | H17: 0
B18: OFICINA DEL C. DIRECTOR EJECUTIVO | C18: 0 | D18: 0 | E18: 0 | F18: 0 | G18: 0 | H18: 0
B19: OFICINA DEL C. DIRECTORA FINANCIERA | C19: 0 | D19: 0 | E19: 0 | F19: 0 | G19: 0 | H19: 0
B20: OFICINA DEL C. DIRECTOR DE OPERACIÓN | C20: 0 | D20: 4435426 | E20: 4435426 | F20: 2550402.57 | G20: 2550402.57 | H20: 1885023.43
B21: OFICINA DEL C. DIRECTOR DE COMERCIALIZACIÓN | C21: 0 | D21: 0 | E21: 0 | F21: 0 | G21: 0 | H21: 0
C22: 0 | D22: 0 | E22: 0 | F22: 0 | G22: 0 | H22: 0
C23: 0 | D23: 0 | E23: 0 | F23: 0 | G23: 0 | H23: 0
B25: Total del Gasto | C25: =SUM(C9:C24) -> 115664745.3 | D25: =SUM(D9:D24) -> 31193050.28 | E25: =SUM(C25,D25) -> 146857795.6 | F25: =SUM(F9:F24) -> 108228414.9 | G25: =SUM(G9:G24) -> 98197448.51 | H25: =E25-F25 -> 38629380.66
B27: "Bajo protesta de decir verdad declaramos que los Estados Financieros y sus notas, son razonablemente correctos y son responsabilidad del emisor".
B31: _________________________________ | D31: _________________________________
B32: C. JOSE LUIS CISNEROS CARLOS | D32: C. P. ROSA MARIA PIÑON ANCHONDO
B33: DIRECTOR EJECUTIVO | D33: DIRECTORA FINANCIERA
